[Event "7th Sharjah Masters 2024"]
[Site "Sharjah"]
[Date "2024.05.19"]
[Round "6.23"]
[White "Bharath Subramaniyam H"]
[Black "Gledura, Benjamin"]
[Result "1/2-1/2"]
[ECO "B88"]
[WhiteElo "2545"]
[BlackElo "2619"]
[Annotator "TA"]
[PlyCount "143"]
[EventDate "2024.05.13"]
[EventType "swiss"]
[EventCountry "UAE"]
[SourceTitle "playchess.com"]
[Source "ChessBase"]
[SourceQuality "1"]
[TimeControl "5400+30"]

{[%evp 58,143,-15,-12,-8,-18,3,0,0,0,0,0,0,-24,0,-18,0,0,24,-16,14,-47,-69,-57,-20,-83,-83,-79,-73,-76,-94,-81,-82,-110,-103,-102,-87,-87,-50,-50,-50,-67,-56,-65,-57,-64,-52,-73,-41,-52,-39,-52,-3,-3,0,0,0,-4,0,-46,0,0,0,0,0,0,0,-8,0,0,0,0,0,0,0,0,0,0,0,0,0,0,0,0,0,0,0,0]} 1. e4 {[%emt 0:00:03]} c5 {[%emt 0:00:19]} 2. Nf3 {[%emt 0:00:07]} d6 {[%emt 0:00:21]} 3. d4 {[%emt 0:00:07]} cxd4 {[%emt 0:00:09]} 4. Nxd4 {[%emt 0:00:07]} Nf6 {[%emt 0:00:09]} 5. Nc3 {[%emt 0:00:04]} a6 {[%emt 0:00:25]} 6. Bc4 {[%emt 0:00:38]} e6 {[%emt 0:00:12]} 7. a4 {[%emt 0:00:19]} Be7 {[%emt 0:03:24]} 8. O-O {[%emt 0:00:18]} O-O {[%emt 0:00:56]} 9. Be3 {[%emt 0:00:14]} Nc6 {[%emt 0:09:30]} 10. Qe2 {[%emt 0:00:39] 10.Kh1 is not played anymore.} Nxd4 {[%emt 0:04:25] B88: Sicilian: Sozin Attack.} 11. Bxd4 {[%emt 0:00:07]} Bd7 {[%emt 0:00:22]} 12. a5 $146 {[%emt 0:03:39]} ({Predecessor:} 12. Rad1 Qc7 13. e5 dxe5 14. Bxe5 Qc8 15. Ne4 Nxe4 16. Qxe4 Rd8 17. Qg4 {1-0 Bodnaruk,A (2350)-Tarnowska,A (1835) Titled Tuesday intern op 30th May Early blitz 2023 (1)}) 12... Bc6 {[%emt 0:01:35]} 13. Rfd1 {[%emt 0:05:27]} Rc8 {[%emt 0:03:29]} 14. Bb6 {[%emt 0:18:01]} Qe8 {[%emt 0:01:17]} 15. Bb3 {[%emt 0:03:45]} Nd7 {[%emt 1:11:27]} 16. Bd4 {[%emt 0:00:49]} Qd8 {[%emt 0:00:00]} 17. Qe3 {[%emt 0:15:52]} Re8 {[%emt 0:00:00]} 18. Ne2 {[%emt 0:05:16]} Bf8 {[%emt 0:00:00]} 19. c4 {[%emt 0:10:36]} Qh4 {[%emt 0:00:00]} 20. Nc3 {[%emt 0:05:32]} Ne5 {[%emt 0:00:00]} 21. Qg3 {[%emt 0:06:25]} Qxg3 {[%emt 0:00:00]} 22. hxg3 {[%emt 0:00:10]} f6 {[%emt 0:00:00]} 23. Rac1 {[%emt 0:06:57]} Kf7 {[%emt 0:00:00]} 24. Ba2 {[%emt 0:02:41]} Bd7 {[%emt 0:00:00]} 25. Ne2 {[%emt 0:02:35]} Nc6 {[%emt 0:00:00]} 26. Bc3 {[%emt 0:00:10]} Rc7 {[%emt 0:00:00]} 27. b3 {[%emt 0:05:19]} Rb8 {[%emt 0:00:00]} 28. Bd2 {[%emt 0:01:45]} b6 {[%emt 0:00:00]} 29. axb6 {[%emt 0:01:31]} Rxb6 {[%emt 0:00:00]} 30. Nc3 {[%emt 0:02:28]} Nb4 {[%emt 0:00:00]} 31. Bb1 {[%emt 0:00:19]} g5 {[%emt 0:00:00]} 32. Be3 {[%emt 0:00:58]} Rbb7 {[%emt 0:00:00]} 33. f4 {[%emt 0:01:14]} h6 {[%emt 0:00:00]} 34. Rf1 {[%emt 0:01:11]} Kg7 {[%emt 0:00:00]} 35. Rf2 {[%emt 0:01:18]} Be7 {[%emt 0:00:00]} 36. Rcf1 {[%emt 0:00:20]} Nc6 {[%emt 0:02:43]} 37. Bc2 {[%emt 0:00:11]} Nb4 {[%emt 0:00:09]} 38. Bb1 {[%emt 0:00:06]} (38. Bd1 $5) 38... gxf4 {[%emt 0:03:11]} 39. gxf4 {[%emt 0:00:31]} ({White should play} 39. Rxf4 $11 Nc6 40. Rg4+ Kf7 41. Bxh6) 39... d5 $1 $15 {[%emt 0:00:02]} 40. exd5 {[%emt 0:01:38]} exd5 {[%emt 0:00:02]} (40... Nxd5 $5 41. Nxd5 exd5 $15) 41. Nxd5 {[%emt 0:01:00]} (41. Rd2 $11) 41... Nxd5 $17 {[%emt 0:00:08]} 42. cxd5 {[%emt 0:00:01]} Rxb3 {[%emt 0:00:11]} 43. Rf3 {[%emt 0:00:49]} Bg4 {[%emt 0:03:03]} 44. Rg3 {[%emt 0:00:15] [#]} h5 $1 {[%emt 0:00:05]} 45. Bf2 {[%emt 0:00:46]} Rxg3 {[%emt 0:00:15]} 46. Bxg3 {[%emt 0:00:01]} Bd6 {[%emt 0:00:24]} 47. Bf2 {[%emt 0:00:51]} Bxf4 {[%emt 0:02:11]} 48. Bd3 {[%emt 0:00:17]} Rd7 {[%emt 0:02:58]} 49. Bc4 {[%emt 0:00:53]} Be5 {[%emt 0:00:13]} 50. Bxa6 {[%emt 0:00:33]} Rxd5 {[%emt 0:00:06]} 51. Bb7 {[%emt 0:00:31]} Rd2 {[%emt 0:00:23]} 52. Be3 {[%emt 0:00:24]} Re2 {[%emt 0:00:18]} 53. Bf4 {[%emt 0:00:31]} Kg6 {[%emt 0:00:47]} 54. Ba6 {[%emt 0:00:20]} Rb2 {[%emt 0:00:38]} (54... Ra2 $15 55. Bd3+ Kg7) 55. Bd3+ $11 {[%emt 0:00:07]} Kg7 {[%emt 0:00:06]} 56. Bxe5 {[%emt 0:00:57]} fxe5 {[%emt 0:00:06]} 57. Bf5 {[%emt 0:00:28]} Rb4 {[%emt 0:01:05]} 58. Kh2 {[%emt 0:00:26]} (58. Bxg4 $11 hxg4 (58... Rxg4 59. Rf5 $11) 59. Rf5) 58... Kh6 {[%emt 0:01:35]} (58... Rf4 $15 59. Rxf4 exf4) 59. Bxg4 $11 {[%emt 0:00:23]} Rxg4 {[%emt 0:00:02]} 60. Rf5 {[%emt 0:00:15]} Re4 {[%emt 0:00:29]} 61. Kg3 {[%emt 0:00:21]} Kg6 {[%emt 0:00:06]} 62. Rf8 {[%emt 0:00:14]} Rg4+ {[%emt 0:01:35]} 63. Kf3 {[%emt 0:00:22]} e4+ {[%emt 0:00:34]} 64. Kf2 {[%emt 0:00:21]} Rg5 {[%emt 0:00:24]} 65. Rf4 {[%emt 0:01:05]} Rg4 {[%emt 0:00:23]} 66. Ke3 {[%emt 0:00:44]} Kg5 {[%emt 0:00:19]} 67. Rxe4 {[%emt 0:00:35]} Rxe4+ {[%emt 0:00:29]} 68. Kxe4 {[%emt 0:00:01]} Kg4 {[%emt 0:00:08]} 69. Ke5 {[%emt 0:00:10]} h4 {[%emt 0:00:08]} 70. Kf6 $1 {[%emt 0:00:05]} Kg3 {[%emt 0:00:04]} (70... Kf4 $5) 71. Kg5 {[%emt 0:00:04]} Kxg2 {[%emt 0:00:06]} 72. Kxh4 {[%emt 0:00:03]} 1/2-1/2

[Event "7th Sharjah Masters 2024"]
[Site "Sharjah"]
[Date "2024.05.19"]
[Round "6.24"]
[White "Petrosyan, Manuel"]
[Black "Horvath, Dominik"]
[Result "1/2-1/2"]
[ECO "C48"]
[WhiteElo "2618"]
[BlackElo "2554"]
[Annotator "TA"]
[PlyCount "121"]
[EventDate "2024.05.13"]
[EventType "swiss"]
[EventCountry "UAE"]
[SourceTitle "playchess.com"]
[Source "ChessBase"]
[SourceQuality "1"]
[TimeControl "5400+30"]

{[%evp 71,121,256,207,42,42,9,8,0,0,0,0,0,0,0,8,0,0,0,0,0,0,0,0,0,0,0,0,0,0,0,0,0,0,0,0,0,0,0,0,0,0,0,0,0,0,0,0,0,0,0,0,0]} 1. e4 {[%emt 0:02:56]} e5 {[%emt 0:00:37]} 2. Nf3 {[%emt 0:00:13]} Nf6 {[%emt 0:00:19]} 3. Nc3 {[%emt 0:01:34]} Nc6 {[%emt 0:00:15]} 4. Bb5 {[%emt 0:00:09]} Nd4 {[%emt 0:00:19]} 5. Nxd4 {[%emt 0:00:59]} exd4 {[%emt 0:00:31]} 6. e5 {[%emt 0:00:06]} dxc3 {[%emt 0:00:42]} 7. exf6 {[%emt 0:00:05]} Qxf6 {[%emt 0:01:19]} 8. dxc3 {[%emt 0:00:08]} Qe5+ {[%emt 0:06:23]} 9. Qe2 {[%emt 0:04:31]} Qxe2+ {[%emt 0:00:08]} 10. Kxe2 {[%emt 0:00:13]} c6 {[%emt 0:00:36]} 11. Bd3 {[%emt 0:00:21]} d5 {[%emt 0:01:49]} 12. a4 $146 {[%emt 0:03:26] C48: Four Knights: 4 Bb5, replies other than 4...Bb4.} ({Predecessor:} 12. c4 Be6 13. cxd5 Bxd5 14. f3 Bc5 15. Be3 Bxe3 16. Kxe3 Kd7 17. Rhe1 Rae8+ 18. Kf2 h6 19. b3 Kc7 20. Rxe8 Rxe8 {½-½ Bacrot,E (2683)-Kuzubov,Y (2605) Titled Tuesday intern op 13th Feb Late blitz 2024 (4)}) 12... a5 {[%emt 0:11:43]} 13. Bf4 {[%emt 0:10:12]} Be6 {[%emt 0:06:10]} 14. h4 {[%emt 0:05:03]} h5 {[%emt 0:01:53]} 15. Kf3 {[%emt 0:00:23]} O-O-O {[%emt 0:02:24]} 16. Rhb1 {[%emt 0:13:31]} d4 {[%emt 0:06:44]} 17. b4 {[%emt 0:05:39]} axb4 {[%emt 0:40:56]} 18. cxb4 {[%emt 0:00:44]} f6 {[%emt 0:00:45]} 19. Ke2 {[%emt 0:05:23]} Bd6 {[%emt 0:02:40]} 20. Bxd6 {[%emt 0:01:19]} Rxd6 {[%emt 0:00:05]} 21. Kd2 {[%emt 0:01:33]} g5 {[%emt 0:01:05]} 22. Rh1 {[%emt 0:11:07]} Bd5 {[%emt 0:00:16]} 23. f3 {[%emt 0:00:05]} Kc7 {[%emt 0:02:28]} 24. a5 {[%emt 0:02:16]} Re6 {[%emt 0:02:30]} 25. a6 {[%emt 0:01:11]} bxa6 {[%emt 0:00:05]} 26. Rxa6 {[%emt 0:00:09]} Re5 {[%emt 0:03:12]} 27. b5 {[%emt 0:05:39]} Rg8 {[%emt 0:04:40]} 28. hxg5 {[%emt 0:11:43]} Rexg5 {[%emt 0:00:07]} 29. Kc1 {[%emt 0:00:36]} Rxg2 {[%emt 0:02:20]} 30. Rxh5 {[%emt 0:00:36]} Rg1+ {[%emt 0:01:43]} 31. Kb2 {[%emt 0:00:05]} Re1 {[%emt 0:00:44]} 32. Rh7+ {[%emt 0:04:49]} Kd6 {[%emt 0:00:04]} 33. bxc6 {[%emt 0:00:09]} Bxc6 {[%emt 0:00:43]} 34. Be4 {[%emt 0:02:50]} Rc8 {[%emt 0:00:03]} 35. Rh6 {[%emt 0:03:35]} Kc5 {[%emt 0:00:58]} 36. Rh5+ {[%emt 0:00:14]} ({Inferior is} 36. Rxf6 Rb8+ $15) 36... Kd6 {[%emt 0:00:03] [#]} 37. Rb6 $2 {[%emt 0:04:27]} ({White has to play} 37. Kb3 $1 $18 {[%cal Rb3c4]}) 37... Re3 $1 $14 {[%emt 0:01:41]} 38. Rf5 {[%emt 0:00:55]} Kd7 $1 {[%emt 0:00:00]} 39. Bxc6+ {[%emt 0:00:28]} Rxc6 {[%emt 0:00:00]} 40. Rxc6 {[%emt 0:00:23]} Kxc6 {[%emt 0:00:00]} 41. Rxf6+ {[%emt 0:00:24]} Kd5 {[%emt 0:00:00]} 42. Rf8 {[%emt 0:00:09]} Kc4 {[%emt 0:00:04]} 43. Kc1 {[%emt 0:00:09]} Re2 {[%emt 0:00:31]} 44. Rc8+ {[%emt 0:00:44]} Kd5 {[%emt 0:00:06]} 45. Rb8 {[%emt 0:00:11]} Rf2 {[%emt 0:00:19]} 46. Rb3 {[%emt 0:00:05]} Kc4 {[%emt 0:01:21]} 47. Rd3 {[%emt 0:00:07]} Rf1+ {[%emt 0:00:10]} 48. Kd2 {[%emt 0:00:08]} Rf2+ {[%emt 0:00:07]} 49. Kd1 {[%emt 0:00:04]} Rf1+ {[%emt 0:00:08]} 50. Ke2 {[%emt 0:00:12]} Rc1 {[%emt 0:00:03]} 51. Kd2 {[%emt 0:00:19]} Rf1 {[%emt 0:00:03]} 52. Ra3 {[%emt 0:00:04]} Rf2+ {[%emt 0:00:06]} 53. Kd1 {[%emt 0:00:09]} Kb4 {[%emt 0:00:36]} 54. Rb3+ {[%emt 0:00:17]} Kc4 {[%emt 0:00:04]} 55. Kc1 {[%emt 0:00:02]} Rf1+ {[%emt 0:00:10]} 56. Kb2 $1 {[%emt 0:00:05]} Rf2 {[%emt 0:00:07]} 57. Ra3 {[%emt 0:00:05]} Kb4 {[%emt 0:00:12]} 58. Rd3 {[%emt 0:00:58]} Kc4 {[%emt 0:00:04]} 59. Rb3 {[%emt 0:00:07]} Rf1 {[%emt 0:00:35]} 60. Ra3 {[%emt 0:00:17]} Kb4 {[%emt 0:00:18]} 61. Rb3+ {[%emt 0:00:19]} 1/2-1/2

[Event "7th Sharjah Masters 2024"]
[Site "Sharjah"]
[Date "2024.05.19"]
[Round "6.25"]
[White "Ivanchuk, Vasyl"]
[Black "Blohberger, Felix"]
[Result "0-1"]
[ECO "C65"]
[WhiteElo "2609"]
[BlackElo "2506"]
[Annotator "TA"]
[PlyCount "89"]
[EventDate "2024.05.13"]
[EventType "swiss"]
[EventCountry "UAE"]
[SourceTitle "playchess.com"]
[Source "ChessBase"]
[SourceQuality "1"]
[TimeControl "5400+30"]

{[%evp 9,89,1,11,14,15,11,0,-33,-24,-42,-33,-36,-19,-20,0,0,0,-41,-46,-41,-45,-41,-25,-39,-37,-39,-38,-44,-28,-19,0,-28,0,0,0,0,0,0,14,14,14,14,16,15,16,15,14,0,7,0,0,0,0,0,0,0,0,0,7,0,7,0,0,0,18,14,8,0,0,15,6,4,8,2,10,0,13,0,4,10,15,0]} 1. e4 {[%emt 0:00:03]} e5 {[%emt 0:00:07]} 2. Nf3 {[%emt 0:00:06]} Nc6 {[%emt 0:00:05]} 3. Bb5 {[%emt 0:00:22]} Nf6 {[%emt 0:01:02]} 4. d3 {[%emt 0:00:05]} Bc5 {[%emt 0:00:07]} 5. Nbd2 {[%emt 0:00:23]} O-O {[%emt 0:02:48]} 6. Nb3 {[%emt 0:01:27][%cal Ob5c6] [#] Black must now prevent Bxc6!} Bb6 {[%emt 0:00:50]} 7. Bxc6 {[%emt 0:14:03]} bxc6 {[%emt 0:00:06]} 8. h3 {[%emt 0:03:10][%cal Oa2a4]} d6 {[%emt 0:18:58]} 9. Be3 {[%emt 0:03:44]} Nd7 {[%emt 0:05:04]} 10. O-O {[%emt 0:03:44]} Bb7 {[%emt 0:03:03]} 11. Re1 {[%emt 0:07:04]} Rb8 {[%emt 0:11:13]} 12. a4 {[%emt 0:15:21]} Bxe3 {[%emt 0:05:22]} 13. fxe3 {[%emt 0:00:27]} c5 {[%emt 0:00:39]} 14. Nbd2 {[%emt 0:19:00]} g6 {[%emt 0:05:19]} 15. b3 {[%emt 0:00:04]} f5 {[%emt 0:03:07]} 16. Rf1 {[%emt 0:00:01]} Qe7 {[%emt 0:02:34]} 17. Qe2 {[%emt 0:01:52]} Rf7 {[%emt 0:03:19]} 18. Rf2 {[%emt 0:00:24]} Rbf8 {[%emt 0:01:08]} 19. Raf1 {[%emt 0:00:07]} h6 {[%emt 0:02:19]} 20. Kh2 {[%emt 0:07:47]} Kg7 {[%emt 0:01:52]} 21. exf5 {[%emt 0:00:46] The position is equal.} Rxf5 {[%emt 0:01:43]} 22. e4 {[%emt 0:00:38]} R5f7 {[%emt 0:00:27]} 23. Nc4 {[%emt 0:01:30]} Nf6 {[%emt 0:05:23]} 24. Nfd2 {[%emt 0:03:40]} Bc8 {[%emt 0:01:07]} 25. Ne3 {[%emt 0:00:04]} Be6 {[%emt 0:00:51]} 26. Qe1 {[%emt 0:00:49]} Ng8 {[%emt 0:07:09]} 27. Rxf7+ {[%emt 0:06:32]} Rxf7 {[%emt 0:00:08]} 28. Nf3 {[%emt 0:00:03]} Qf8 {[%emt 0:05:04]} 29. Qa5 {[%emt 0:00:07]} Qb8 {[%emt 0:00:18]} 30. Qb5 {[%emt 0:04:12]} Qc8 {[%emt 0:00:46]} 31. b4 {[%emt 0:04:32]} a6 {[%emt 0:03:14]} 32. Qa5 {[%emt 0:00:01]} cxb4 {[%emt 0:00:12]} 33. Qxb4 {[%emt 0:00:02]} Ne7 {[%emt 0:01:07]} 34. Qc3 {[%emt 0:03:57]} Kh7 {[%emt 0:01:36]} 35. a5 {[%emt 0:00:58]} Qb7 {[%emt 0:01:04]} 36. Qe1 {[%emt 0:00:41]} Qa7 {[%emt 0:01:18]} 37. Qd2 {[%emt 0:00:28]} Kg7 {[%emt 0:00:36]} 38. d4 {[%emt 0:00:31]} exd4 {[%emt 0:01:54]} 39. Nxd4 {[%emt 0:00:02]} Rxf1 $1 {[%emt 0:03:51]} 40. Nxf1 {[%emt 0:00:36] Excellent horsemanship.} Bf7 {[%emt 0:00:30]} 41. Qc3 {[%emt 0:00:56] [#] White threatens Ne6+ and mate.} Kg8 {[%emt 0:00:08]} 42. Nd2 {[%emt 0:00:31]} Qb7 {[%emt 0:01:43]} 43. N4f3 {[%emt 0:00:09]} Qc6 {[%emt 0:00:35]} 44. Qf6 {[%emt 0:00:47]} Qd7 {[%emt 0:00:14]} 45. e5 {[%emt 0:01:14][%mdl 32768] Weighted Error Value: White=0.05 (flawless) /Black=0.05 (flawless) .  Inaccurate:     	White=3     	Black=1      OK:         	White=20    	Black=17     Best:        	---       	Black=1      Strong:       	---       	Black=1     . Loss on time!?} 0-1

[Event "7th Sharjah Masters 2024"]
[Site "Sharjah"]
[Date "2024.05.19"]
[Round "6.26"]
[White "Zemlyanskii, Ivan"]
[Black "Aditya Mittal"]
[Result "1-0"]
[ECO "B90"]
[WhiteElo "2516"]
[BlackElo "2608"]
[Annotator "TA"]
[PlyCount "103"]
[EventDate "2024.05.13"]
[EventType "swiss"]
[EventCountry "UAE"]
[SourceTitle "playchess.com"]
[Source "ChessBase"]
[SourceQuality "1"]
[TimeControl "5400+30"]

{[%evp 44,103,58,0,0,18,52,52,102,91,126,139,124,142,187,158,238,230,261,248,254,247,463,466,468,479,460,413,540,517,559,533,491,359,325,324,482,415,500,430,509,511,812,1022,1122,1045,1375,1346,1176,1061,12796,11376,29949,29959,12808,12839,29985,29985,29989,29990,29990,29989]} 1. e4 {[%emt 0:00:03]} c5 {[%emt 0:00:01]} 2. Nf3 {[%emt 0:00:17]} d6 {[%emt 0:00:01]} 3. d4 {[%emt 0:00:09]} cxd4 {[%emt 0:00:02]} 4. Nxd4 {[%emt 0:00:06]} Nf6 {[%emt 0:00:01]} 5. Nc3 {[%emt 0:00:07]} a6 {[%emt 0:00:02]} 6. h3 {[%emt 0:00:06]} e5 {[%emt 0:00:07]} 7. Nb3 {[%emt 0:00:07]} Be6 {[%emt 0:00:24] B90: Sicilian Najdorf: Unusual White 6th moves, 6 Be3 Ng4 and 6 Be3 e5.} 8. f4 {[%emt 0:00:11]} Nc6 {[%emt 0:01:11] Recently 8...b5 got a lot of attention.} 9. f5 {[%emt 0:21:05]} Bxb3 {[%emt 0:00:06]} 10. axb3 {[%emt 0:00:30]} d5 {[%emt 0:00:01]} 11. exd5 {[%emt 0:01:19]} Nd4 {[%emt 0:00:02]} 12. Qd3 {[%emt 0:08:22]} Rc8 {[%emt 0:06:20]} 13. Be3 $146 {[%emt 0:20:23]} ({Predecessor:} 13. Bd2 Be7 14. O-O-O Nxd5 15. Qe4 Nb4 16. Bf4 Nxb3+ 17. Kb1 Qa5 18. cxb3 Rxc3 19. bxc3 {1-0 Rasmussen,A (2524)-Hillarp Persson,T (2555) DEN-chT 1415 53rd 2014 (6.1)}) 13... Bc5 {[%emt 0:21:08]} 14. O-O-O {[%emt 0:04:07]} O-O {[%emt 0:01:58]} 15. Kb1 {[%emt 0:02:04]} b5 {[%emt 0:07:09]} 16. Be2 {[%emt 0:11:54]} Qc7 {[%emt 0:06:54]} 17. Bf3 {[%emt 0:03:07]} h6 {[%emt 0:16:57]} 18. Bxd4 {[%emt 0:02:51]} exd4 {[%emt 0:02:17]} 19. Ne4 {[%emt 0:06:27]} Nxd5 {[%emt 0:01:38]} 20. Nxc5 {[%emt 0:01:09]} Qxc5 {[%emt 0:11:16]} 21. Bxd5 {[%emt 0:00:20]} Qxd5 {[%emt 0:00:01]} 22. g4 {[%emt 0:02:32]} Qc6 {[%emt 0:03:53]} 23. Rh2 {[%emt 0:01:16]} Rcd8 $1 {[%emt 0:01:48]} 24. Re2 {[%emt 0:03:30]} a5 {[%emt 0:04:58]} 25. Re4 {[%emt 0:01:46]} a4 {[%emt 0:01:51]} (25... b4 $1 $14) 26. b4 $16 {[%emt 0:02:35]} (26. Rxd4 Rxd4 27. Qxd4 axb3 28. cxb3 Qg2 $11) 26... Rfe8 {[%emt 0:00:48]} 27. Rxd4 {[%emt 0:00:30]} Rxd4 {[%emt 0:03:19]} 28. Qxd4 {[%emt 0:00:02]} Qf3 {[%emt 0:01:01]} 29. Qd7 {[%emt 0:01:07]} Kh7 {[%emt 0:04:42]} (29... Qe2 $16 {is a better defense.} 30. Qd3 Qe5) 30. Rc1 $18 {[%emt 0:01:58]} Ra8 {[%emt 0:00:50]} 31. Qxf7 {[%emt 0:02:46]} (31. Qxb5 a3 32. Qd3 a2+ 33. Ka1 Qf4 $11) 31... Ra6 {[%emt 0:01:05]} 32. Qd7 {[%emt 0:01:34]} Qxh3 $2 {[%emt 0:00:24]} (32... a3 {was called for.} 33. Qd3 (33. Qxb5 axb2 34. Qxa6 bxc1=Q+ 35. Kxc1 Qf4+ 36. Kd1 Qxb4 $16) 33... Qxd3 34. cxd3 a2+ 35. Ka1 Rd6 36. Kxa2 Rxd3) 33. Qxb5 $18 {[%emt 0:00:32]} Rf6 {[%emt 0:00:01]} 34. Qc4 {[%emt 0:00:46]} (34. Qxa4 h5 35. b5 Qe3) 34... a3 {[%emt 0:00:09]} 35. b3 {[%emt 0:01:09]} Qe3 {[%emt 0:01:43]} 36. Rd1 {[%emt 0:00:24]} Qe5 {[%emt 0:00:04] [#]} 37. Qd4 $1 {[%emt 0:00:49]} Qe2 {[%emt 0:00:01]} 38. Rc1 {[%emt 0:00:32]} Rc6 {[%emt 0:00:27]} 39. Ka2 {[%emt 0:00:38]} Ra6 {[%emt 0:00:46]} (39... Rxc2+ {was worth a try.} 40. Rxc2 (40. Kxa3 $2 Qa6#) 40... Qxc2+ 41. Kxa3 Qe2) 40. Qc3 {[%emt 0:00:41]} ({But not} 40. Qd3 Qe5 41. Rb1 (41. Qxa6 $2 Qb2#) (41. f6+ Kg8 $18) 41... Rd6 $18) 40... Qxg4 {[%emt 0:00:31]} 41. b5 {[%emt 0:00:17]} Rf6 {[%emt 0:00:43]} 42. Qd3 {[%emt 0:00:47]} h5 {[%emt 0:01:48]} (42... Qb4 $142 43. Rd1 (43. c4 Qc5 $18) 43... Qf8) 43. c4 $18 {[%emt 0:00:32]} h4 {[%emt 0:00:24]} 44. Rc3 {[%emt 0:00:30]} Rxf5 {[%emt 0:01:30]} 45. b6 {[%emt 0:00:25]} g6 {[%emt 0:00:14]} 46. Qd7+ {[%emt 0:00:32]} ({Not} 46. Kxa3 Qg1 47. Qd7+ Kh6 48. Qd2+ Kh7 $11) 46... Kh6 {[%emt 0:00:01]} 47. Qd2+ {[%emt 0:00:16]} (47. Kxa3 $2 {perishes.} Ra5+ $19) 47... Kh5 {[%emt 0:00:38]} 48. b7 {[%emt 0:00:11]} Rf8 {[%emt 0:00:01]} 49. c5 {[%emt 0:00:27]} h3 {[%emt 0:01:39]} 50. c6 {[%emt 0:00:18]} Qh4 {[%emt 0:00:33]} 51. Rc2 {[%emt 0:01:07]} Qe4 {[%emt 0:01:50]} 52. Qe2+ {[%emt 0:01:17]} 1-0

[Event "7th Sharjah Masters 2024"]
[Site "Sharjah"]
[Date "2024.05.19"]
[Round "6.27"]
[White "Siddharth, Jagadeesh"]
[Black "Gupta, Abhijeet"]
[Result "1-0"]
[ECO "B91"]
[WhiteElo "2512"]
[BlackElo "2604"]
[Annotator "TA"]
[PlyCount "109"]
[EventDate "2024.05.13"]
[EventType "swiss"]
[EventCountry "UAE"]
[SourceTitle "playchess.com"]
[Source "ChessBase"]
[SourceQuality "1"]
[TimeControl "5400+30"]

{[%evp 58,109,0,0,0,0,0,-7,0,0,0,0,0,0,0,0,0,0,0,0,0,0,0,0,186,192,223,33,42,14,47,60,109,42,43,17,3,3,90,57,146,75,186,0,0,0,97,-261,70,0,29970,29953,29992,29983]} 1. e4 {[%emt 0:00:07]} c5 {[%emt 0:00:17]} 2. Nf3 {[%emt 0:00:06]} d6 {[%emt 0:00:06]} 3. d4 cxd4 {[%emt 0:00:04]} 4. Nxd4 {[%emt 0:00:10]} Nf6 {[%emt 0:00:05]} 5. Nc3 {[%emt 0:00:06]} a6 {[%emt 0:00:04]} 6. g3 {[%emt 0:00:11]} e5 {[%emt 0:00:50]} 7. Nb3 {[%emt 0:00:07]} Be7 {[%emt 0:00:56]} 8. Bg2 {[%emt 0:00:07]} O-O {[%emt 0:00:20]} 9. O-O {[%emt 0:00:06]} b6 {[%emt 0:16:39]} 10. a4 {[%emt 0:08:28]} Bb7 {[%emt 0:01:31]} 11. Qe2 {[%emt 0:00:09]} Nbd7 {[%emt 0:00:33]} 12. Rd1 {[%emt 0:00:07]} Rc8 {[%emt 0:00:41]} 13. Nd2 {[%emt 0:00:12]} Qc7 {[%emt 0:05:11]} 14. Nf1 {[%emt 0:00:10]} Rfe8 {[%emt 0:00:32]} 15. Ne3 {[%emt 0:12:45]} Bf8 {[%emt 0:00:47]} 16. Bd2 {[%emt 0:05:02]} Nc5 {[%emt 0:04:08]} 17. Ned5 {[%emt 0:02:23]} Nxd5 {[%emt 0:01:03]} 18. Nxd5 {[%emt 0:00:07]} Bxd5 {[%emt 0:00:28]} 19. exd5 {[%emt 0:00:05]} a5 {[%emt 0:00:14]} 20. Bh3 {[%emt 0:07:39]} Rb8 {[%emt 0:01:20]} 21. Qb5 {[%emt 0:06:20]} g6 {[%emt 0:02:03]} 22. c3 {[%emt 0:00:52]} f5 {[%emt 0:00:47]} 23. Be3 {[%emt 0:00:57]} Bg7 {[%emt 0:02:37]} 24. Rac1 {[%emt 0:04:29]} Rec8 {[%emt 0:01:11]} 25. f3 {[%emt 0:12:39]} Qd8 {[%emt 0:06:18]} 26. Rc2 {[%emt 0:03:04]} Bf6 {[%emt 0:01:29]} 27. b4 {[%emt 0:03:06]} Nd7 {[%emt 0:00:36]} 28. g4 {[%emt 0:03:38]} f4 {[%emt 0:11:38]} 29. g5 {[%emt 0:05:29]} Bxg5 {[%emt 0:01:24]} (29... Rc7 $1 $15 30. Bxf4 Bxg5) 30. Bxd7 $11 {[%emt 0:00:29]} fxe3 {[%emt 0:00:05]} 31. Bxc8 {[%emt 0:00:06]} Rxc8 {[%emt 0:00:43]} 32. Qd3 {[%emt 0:00:52]} Bf4 {[%emt 0:03:42]} 33. bxa5 {[%emt 0:01:12]} bxa5 {[%emt 0:00:04]} 34. Rb1 {[%emt 0:00:17]} Qg5+ {[%emt 0:03:12]} 35. Rg2 {[%emt 0:00:35]} Qh5 {[%emt 0:00:36]} 36. Rb7 {[%emt 0:04:09]} Kh8 {[%emt 0:00:24]} 37. c4 {[%emt 0:22:39]} (37. Qe4 $2 Rxc3 38. Rb1 Kg7 $19) 37... Qh4 {[%emt 0:10:27]} (37... Qxf3 38. Rxh7+ Kxh7 39. Qxg6+ Kh8 40. Qg7#) 38. Qe2 {[%emt 0:00:00]} Qf6 {[%emt 0:03:25]} (38... Rxc4 39. Qxc4 Bxh2+ 40. Rxh2 $18) 39. Qd3 {[%emt 0:00:00]} Rf8 {[%emt 0:01:16]} 40. Rg4 {[%emt 0:00:00]} Bg5 $2 {[%emt 0:03:43]} (40... e4 $6 41. Qxe4 Qa1+ 42. Qb1 $16 (42. Rb1 Qa2 $16)) (40... Rf7 $11 {and Black stays safe.} 41. Rb8+ Rf8 (41... Kg7 42. Qe4 $11)) 41. Qe4 $18 {[%emt 0:00:00]} Bf4 {[%emt 0:02:55]} 42. Kf1 $2 {[%emt 0:00:00]} ({Only move:} 42. h4 $1 $18 {[%cal Rh4h5]}) 42... Rf7 $1 $14 {[%emt 0:02:46]} 43. Rb5 {[%emt 0:00:00]} Qd8 {[%emt 0:01:43]} (43... Bxh2 $5 44. Qxe3 Bf4 $16) 44. Ke2 {[%emt 0:00:00]} Kg7 {[%emt 0:00:43]} (44... Rc7 $14) 45. h3 {[%emt 0:00:00]} (45. c5 $16) 45... Kh6 {[%emt 0:01:30]} 46. c5 {[%emt 0:00:00]} dxc5 {[%emt 0:00:41]} 47. Rxc5 {[%emt 0:00:00]} Rf6 {[%emt 0:02:35]} (47... Qb8 $11) 48. Qc2 $16 {[%emt 0:00:00]} Rf5 {[%emt 0:06:50] [#]} (48... Bg5 $14) 49. Qd3 {[%emt 0:00:00]} (49. Rc7 $142 $1 {Strongly threatening Qc6.} Qxd5 50. Rh4+ Rh5 (50... Kg5 51. Rcxh7 Kf6 52. Rc7 $18) 51. Rxh5+ Kxh5 52. Rxh7+ Bh6 53. Rc7) 49... Qd6 {[%emt 0:02:07]} (49... Rf7 $16) 50. Qb5 $2 {[%emt 0:00:00]} (50. Rxa5 Qb4 51. Rh4+ Rh5 $11) (50. Rc6 $18 Qd7 51. Qb5) 50... e4 $1 $11 {[%emt 0:01:18]} 51. fxe4 {[%emt 0:00:00]} Rf7 {[%emt 0:00:12] [#]} (51... Bg5 $1 $11 {remains equal.} 52. Rh4+ (52. exf5 $2 Qh2+ 53. Kd3 Qd2+ 54. Kc4 e2 $19) 52... Bxh4 53. exf5 Qh2+ 54. Kxe3 Bg5+ 55. Ke4 Qf4+ 56. Kd3 Qxf5+ 57. Kc3 Bf6+ 58. Kd2 Bg5+ 59. Kd1 Qf2 60. Qxa5 Qg1+ 61. Kc2 Qc1+ 62. Kb3 Qb1+ 63. Kc3 Bf6+ 64. Kc4 Qf1+ 65. Kb4 Qb1+ 66. Kc4 Qf1+ 67. Kb4 Qb1+ 68. Kc4) 52. Rc2 $2 {[%emt 0:01:15][%mdl 8192]} (52. Qxa5 Be5 53. Kd3 (53. Kxe3 $2 Kg7 $19) 53... Rb7 $19) (52. Rc6 $1 $16 {[%cal Rc6d6] keeps the pressure on.} Qa3 53. Qd3 (53. Qxa5 $2 Be5 $19) 53... Qb2+ 54. Qc2) 52... Qe5 $2 {[%emt 0:00:47]} ({Black should try} 52... Qf6 $19 53. Rxf4 (53. Qxa5 $2 {is the wrong capture.} Bg5 $19) 53... Qxf4) 53. d6 {[%emt 0:03:51]} (53. Qb6 $14 Qxe4 54. Rh4+ Kg5 55. Qd8+ Rf6 56. Rg4+ Kh6 57. Qxf6 Qxc2+ 58. Kf3 Qf2+ 59. Ke4) 53... Qxe4 $2 {[%emt 0:00:34][%mdl 8192]} (53... Qxd6 $11 54. Qc6 Qe5 55. Rh4+ (55. Qd5 Qf6 $17) 55... Kg7) 54. Rc4 {[%emt 0:00:17]} Qh1 {[%emt 0:00:30]} 55. Rcxf4 {[%emt 0:00:30]} 1-0